[Event "Kragero Resort A 2020"]
[Site "Kragero"]
[Date "2020.02.21"]
[Round "6.12"]
[White "Holleland, Sigve"]
[Black "Gretarsson, Helgi Ass"]
[Result "1-0"]
[ECO "D10"]
[WhiteElo "2076"]
[BlackElo "2403"]
[Annotator "ChessBase"]
[PlyCount "105"]
[EventDate "2020.02.19"]
[EventType "swiss"]
[EventCountry "NOR"]
[SourceTitle "playchess.com"]
[Source "ChessBase"]
[SourceQuality "1"]
[TimeControl "5400+30"]

1. d4 {[%emt 0:00:00]} d5 {[%emt 0:00:00]} 2. c4 {[%emt 0:00:00]} c6 {[%emt 0:00:11]} 3. cxd5 {[%emt 0:00:00]} cxd5 {[%emt 0:00:01]} 4. Bf4 {[%emt 0:00:02]} Nc6 {[%emt 0:00:14]} 5. e3 {[%emt 0:00:07]} Nf6 {[%emt 0:09:02]} 6. Nc3 {[%emt 0:02:27]} a6 {[%emt 0:00:29]} 7. Bd3 {[%emt 0:02:06]} Bg4 {[%emt 0:00:45]} 8. f3 {[%emt 0:01:06]} Bd7 {[%emt 0:01:22]} 9. Nge2 {[%emt 0:02:02]} e6 {[%emt 0:00:07]} 10. e4 {[%emt 0:02:54]} dxe4 {[%emt 0:02:41]} 11. fxe4 {[%emt 0:00:00]} e5 {[%emt 0:01:25]} 12. dxe5 {[%emt 0:07:13]} Ng4 {[%emt 0:00:07]} 13. O-O {[%emt 0:02:00]} Bc5+ {[%emt 0:11:41]} 14. Kh1 {[%emt 0:00:41]} Nf2+ {[%emt 0:00:18]} 15. Rxf2 {[%emt 0:00:07]} Bxf2 {[%emt 0:00:01]} 16. Qf1 {[%emt 0:20:39]} Ba7 {[%emt 0:12:29]} 17. Ng3 {[%emt 0:00:00]} O-O {[%emt 0:23:03]} 18. Nf5 {[%emt 0:18:17]} Bxf5 {[%emt 0:19:23]} 19. exf5 {[%emt 0:00:00]} Qd4 {[%emt 0:00:09]} 20. Rd1 {[%emt 0:00:00]} Nxe5 {[%emt 0:01:49]} 21. Bb1 {[%emt 0:00:00]} Qc5 {[%emt 0:00:43]} 22. Ne4 {[%emt 0:03:28]} Qc7 {[%emt 0:04:41]} 23. Rc1 {[%emt 0:00:00]} Qe7 {[%emt 0:05:02]} 24. f6 {[%emt 0:00:00]} gxf6 {[%emt 0:00:37]} 25. Bh6 {[%emt 0:02:53]} Ng4 {[%emt 0:02:42]} 26. Qf5 {[%emt 0:00:00]} Qxe4 {[%emt 0:03:15]} 27. Bxe4 {[%emt 0:00:00]} Nf2+ {[%emt 0:00:04]} 28. Kg1 {[%emt 0:00:00]} Nxe4+ {[%emt 0:00:01]} 29. Kf1 {[%emt 0:00:00]} Rfe8 {[%emt 0:00:02]} 30. Qg4+ {[%emt 0:00:00]} Ng5 {[%emt 0:00:02]} 31. Bxg5 {[%emt 0:00:00]} fxg5 {[%emt 0:00:07]} 32. Qxg5+ {[%emt 0:00:00]} Kf8 {[%emt 0:00:34]} 33. Qf6 {[%emt 0:04:13]} Rad8 {[%emt 0:00:09]} 34. Qh8+ {[%emt 0:00:40]} Ke7 {[%emt 0:00:01]} 35. Re1+ {[%emt 0:00:11]} Kd7 {[%emt 0:00:13]} 36. Rxe8 {[%emt 0:00:13]} Rxe8 {[%emt 0:00:04]} 37. Qxh7 {[%emt 0:00:24]} Re7 {[%emt 0:00:10]} 38. Qf5+ {[%emt 0:01:05]} Kd8 {[%emt 0:00:32]} 39. h4 {[%emt 0:01:35]} Bd4 {[%emt 0:00:21]} 40. b3 {[%emt 0:01:02]} Kc7 {[%emt 0:05:54]} 41. g4 {[%emt 0:03:06]} Kd6 {[%emt 0:00:00]} 42. Qd3 {[%emt 0:03:40]} Ke5 {[%emt 0:00:00]} 43. Kg2 {[%emt 0:00:44]} Kd5 {[%emt 0:00:26]} 44. h5 {[%emt 0:03:52]} Re4 {[%emt 0:00:29]} 45. Qf3 {[%emt 0:01:32]} Be5 {[%emt 0:00:22]} 46. Qxf7+ {[%emt 0:00:20]} Kd4 {[%emt 0:00:01]} 47. Qd7+ {[%emt 0:05:02]} Ke3 {[%emt 0:00:07]} 48. Qd1 {[%emt 0:00:59]} Rf4 {[%emt 0:01:32]} 49. Qe1+ {[%emt 0:00:53]} Kd4 {[%emt 0:00:01]} 50. Qd2+ {[%emt 0:00:24]} Ke4 {[%emt 0:00:04]} 51. Qe2+ {[%emt 0:00:23]} Kd4 {[%emt 0:00:05]} 52. h6 {[%emt 0:01:17]} Re4 {[%emt 0:00:02]} 53. Qd1+ {[%emt 0:00:26]} 1-0

[Event "Kragero Resort A 2020"]
[Site "Kragero"]
[Date "2020.02.21"]
[Round "6.13"]
[White "Beerdsen, Thomas"]
[Black "Heimisson, Hilmir Freyr"]
[Result "1-0"]
[ECO "B22"]
[WhiteElo "2497"]
[BlackElo "2250"]
[Annotator "ChessBase"]
[PlyCount "67"]
[EventDate "2020.02.19"]
[EventType "swiss"]
[EventCountry "NOR"]
[SourceTitle "playchess.com"]
[Source "ChessBase"]
[SourceQuality "1"]
[TimeControl "5400+30"]

1. e4 {[%emt 0:00:19]} c5 {[%emt 0:00:00]} 2. c3 {[%emt 0:00:04]} Nf6 {[%emt 0:00:00]} 3. e5 {[%emt 0:00:05]} Nd5 {[%emt 0:00:00]} 4. d4 {[%emt 0:00:04]} cxd4 {[%emt 0:00:05]} 5. Bc4 {[%emt 0:00:04]} Nb6 {[%emt 0:00:59]} 6. Bb3 {[%emt 0:00:05]} d6 {[%emt 0:01:11]} 7. exd6 {[%emt 0:04:37]} e6 {[%emt 0:05:29]} 8. cxd4 {[%emt 0:01:06]} Bxd6 {[%emt 0:00:20]} 9. Nf3 {[%emt 0:00:23]} Nc6 {[%emt 0:02:46]} 10. O-O {[%emt 0:01:27]} O-O {[%emt 0:01:49]} 11. Nc3 {[%emt 0:01:29]} Nd5 {[%emt 0:06:11]} 12. Re1 {[%emt 0:02:11]} b6 {[%emt 0:03:41]} 13. Nxd5 {[%emt 0:16:52]} exd5 {[%emt 0:00:28]} 14. Bg5 {[%emt 0:00:07]} Qd7 {[%emt 0:11:07]} 15. Ne5 {[%emt 0:00:57]} Nxe5 {[%emt 0:03:15]} 16. dxe5 {[%emt 0:03:31]} Bb4 {[%emt 0:00:05]} 17. Re3 {[%emt 0:02:08]} Bb7 {[%emt 0:07:31]} 18. Qh5 {[%emt 0:14:17]} Rfc8 {[%emt 0:19:09]} 19. Bf6 {[%emt 0:05:56]} Bf8 {[%emt 0:07:33]} 20. Rg3 {[%emt 0:04:18]} g6 {[%emt 0:08:22]} 21. Rd1 {[%emt 0:01:22]} Bg7 {[%emt 0:03:31]} 22. Qh4 {[%emt 0:01:43]} Qe6 {[%emt 0:02:44]} 23. Rh3 {[%emt 0:03:17]} h5 {[%emt 0:00:56]} 24. Bxg7 {[%emt 0:01:59]} Kxg7 {[%emt 0:00:34]} 25. Qg5 {[%emt 0:00:10]} Re8 {[%emt 0:09:57]} 26. Rxh5 {[%emt 0:03:04]} Rh8 {[%emt 0:00:05]} 27. Rxh8 {[%emt 0:00:13]} Rxh8 {[%emt 0:00:06]} 28. Qg3 {[%emt 0:02:27]} Re8 {[%emt 0:01:35]} 29. Re1 {[%emt 0:00:30]} Qf5 {[%emt 0:03:14]} 30. Qc3 {[%emt 0:00:36]} Kg8 {[%emt 0:01:15]} 31. h3 {[%emt 0:01:26]} Qf4 {[%emt 0:00:32]} 32. Qc7 {[%emt 0:00:39]} Ba8 {[%emt 0:00:55]} 33. Qd7 {[%emt 0:02:31]} Kf8 {[%emt 0:00:30]} 34. Ba4 {[%emt 0:00:22]} 1-0

[Event "Kragero Resort A 2020"]
[Site "Kragero"]
[Date "2020.02.21"]
[Round "6.14"]
[White "Nordquelle, Daniel"]
[Black "Notkevich, Benjamin Arvola"]
[Result "0-1"]
[ECO "C01"]
[WhiteElo "2242"]
[BlackElo "2495"]
[Annotator "ChessBase"]
[PlyCount "90"]
[EventDate "2020.02.19"]
[EventType "swiss"]
[EventCountry "NOR"]
[SourceTitle "playchess.com"]
[Source "ChessBase"]
[SourceQuality "1"]
[TimeControl "5400+30"]

1. e4 {[%emt 0:00:00]} e6 {[%emt 0:00:00]} 2. d4 {[%emt 0:03:50]} d5 {[%emt 0:00:00]} 3. Nc3 {[%emt 0:00:24]} Bb4 {[%emt 0:00:00]} 4. exd5 {[%emt 0:05:45]} exd5 {[%emt 0:00:13]} 5. Bd3 {[%emt 0:00:04]} Nf6 {[%emt 0:02:28]} 6. Nge2 {[%emt 0:02:53]} O-O {[%emt 0:00:35]} 7. O-O {[%emt 0:00:26]} c6 {[%emt 0:03:07]} 8. a3 {[%emt 0:02:57]} Bd6 {[%emt 0:00:16]} 9. Bf4 {[%emt 0:00:14]} Bg4 {[%emt 0:02:05]} 10. Qd2 {[%emt 0:04:07]} Bh5 {[%emt 0:00:31]} 11. Bxd6 {[%emt 0:06:11]} Qxd6 {[%emt 0:00:19]} 12. Nf4 {[%emt 0:00:08]} Bg6 {[%emt 0:00:29]} 13. Nxg6 {[%emt 0:00:07]} hxg6 {[%emt 0:00:18]} 14. f3 {[%emt 0:00:10]} Nbd7 {[%emt 0:01:02]} 15. Rae1 {[%emt 0:03:11]} Nh5 {[%emt 0:05:20]} 16. g3 {[%emt 0:02:20]} Rfe8 {[%emt 0:01:45]} 17. Rxe8+ {[%emt 0:04:21]} Rxe8 {[%emt 0:00:07]} 18. Re1 {[%emt 0:00:06]} Rxe1+ {[%emt 0:00:12]} 19. Qxe1 {[%emt 0:00:05]} Nf8 {[%emt 0:00:08]} 20. Qe3 {[%emt 0:04:23]} Nf6 {[%emt 0:01:46]} 21. Ne2 {[%emt 0:00:29]} Qd8 {[%emt 0:02:12]} 22. c3 {[%emt 0:02:12]} Ne8 {[%emt 0:00:23]} 23. Nf4 {[%emt 0:03:58]} Nd6 {[%emt 0:00:10]} 24. Kg2 {[%emt 0:00:58]} Nc4 {[%emt 0:01:32]} 25. Bxc4 {[%emt 0:02:32]} dxc4 {[%emt 0:00:42]} 26. d5 {[%emt 0:02:10]} g5 {[%emt 0:01:06]} 27. Nh3 {[%emt 0:07:45]} g4 {[%emt 0:13:08]} 28. Nf4 {[%emt 0:01:02]} gxf3+ {[%emt 0:00:09]} 29. Qxf3 {[%emt 0:00:16]} cxd5 {[%emt 0:00:24]} 30. Qxd5 {[%emt 0:17:15]} Qb6 {[%emt 0:01:02]} 31. Qd2 {[%emt 0:01:03]} Qb5 {[%emt 0:00:19]} 32. Qe2 {[%emt 0:04:11]} Qc6+ {[%emt 0:01:16]} 33. Qf3 {[%emt 0:00:36]} Qb5 {[%emt 0:00:09]} 34. Qe2 {[%emt 0:00:10]} Nh7 {[%emt 0:00:49]} 35. Kf1 {[%emt 0:00:31]} Nf6 {[%emt 0:00:34]} 36. Ke1 {[%emt 0:00:29]} Qf5 {[%emt 0:02:00]} 37. Qd2 {[%emt 0:05:14]} Qb1+ {[%emt 0:03:06]} 38. Ke2 {[%emt 0:00:47]} Qh1 {[%emt 0:00:24]} 39. Ke3 {[%emt 0:01:34]} b6 {[%emt 0:18:20]} 40. Qg2 {[%emt 0:04:24]} Ng4+ {[%emt 0:06:59]} 41. Ke2 {[%emt 0:04:11]} Qb1 {[%emt 0:00:42]} 42. Kf3 {[%emt 0:04:49]} Ne5+ {[%emt 0:11:11]} 43. Ke3 {[%emt 0:00:14]} g5 {[%emt 0:00:20]} 44. Ne2 {[%emt 0:02:46]} Ng4+ {[%emt 0:02:31]} 45. Kf3 {[%emt 0:00:17]} f5 {[%emt 0:00:29]} 0-1

[Event "Kragero Resort A 2020"]
[Site "Kragero"]
[Date "2020.02.21"]
[Round "6.16"]
[White "Vijayalakshmi, Subbaraman"]
[Black "Kizatbay, Abyl"]
[Result "1-0"]
[ECO "D00"]
[WhiteElo "2331"]
[BlackElo "2142"]
[Annotator "ChessBase"]
[PlyCount "61"]
[EventDate "2020.02.19"]
[EventType "swiss"]
[EventCountry "NOR"]
[SourceTitle "playchess.com"]
[Source "ChessBase"]
[SourceQuality "1"]
[TimeControl "5400+30"]

1. d4 {[%emt 0:02:06]} Nf6 {[%emt 0:00:00]} 2. Nf3 {[%emt 0:00:11]} g6 {[%emt 0:00:00]} 3. Nc3 {[%emt 0:00:08]} d5 {[%emt 0:00:00]} 4. Bf4 {[%emt 0:00:14]} Bg7 {[%emt 0:00:22]} 5. e3 {[%emt 0:00:21]} O-O {[%emt 0:01:36]} 6. Be2 {[%emt 0:00:45]} c5 {[%emt 0:08:58]} 7. dxc5 {[%emt 0:00:33]} Qa5 {[%emt 0:00:34]} 8. Nd2 {[%emt 0:00:08]} Qxc5 {[%emt 0:03:58]} 9. Nb3 {[%emt 0:00:10]} Qb6 {[%emt 0:01:42]} 10. a4 {[%emt 0:07:53]} Nc6 {[%emt 0:03:20]} 11. a5 {[%emt 0:00:45]} Qd8 {[%emt 0:00:25]} 12. a6 {[%emt 0:02:06]} b6 {[%emt 0:08:15]} 13. Bb5 {[%emt 0:06:26]} Bd7 {[%emt 0:05:51]} 14. Nxd5 {[%emt 0:02:39]} Rc8 {[%emt 0:06:16]} 15. Nxf6+ {[%emt 0:13:52]} Bxf6 {[%emt 0:00:45]} 16. c3 {[%emt 0:00:06]} e5 {[%emt 0:03:40]} 17. Bh6 {[%emt 0:01:08]} Re8 {[%emt 0:00:46]} 18. O-O {[%emt 0:00:35]} Be6 {[%emt 0:13:32]} 19. Nd2 {[%emt 0:00:56]} Bh8 {[%emt 0:06:20]} 20. e4 {[%emt 0:05:57]} Qh4 {[%emt 0:01:58]} 21. Be3 {[%emt 0:00:07]} Rf8 {[%emt 0:06:44]} 22. g3 {[%emt 0:02:47]} Qe7 {[%emt 0:01:58]} 23. Qe2 {[%emt 0:01:13]} h5 {[%emt 0:01:08]} 24. Rfd1 {[%emt 0:01:00]} Na5 {[%emt 0:01:35]} 25. b4 {[%emt 0:02:34]} Nb3 {[%emt 0:00:56]} 26. Nxb3 {[%emt 0:00:26]} Bxb3 {[%emt 0:00:03]} 27. Rd7 {[%emt 0:00:14]} Qe6 {[%emt 0:00:49]} 28. Rxa7 {[%emt 0:00:25]} Rxc3 {[%emt 0:00:06]} 29. Rb7 {[%emt 0:00:34]} h4 {[%emt 0:07:48]} 30. a7 {[%emt 0:00:25]} Rcc8 {[%emt 0:00:56]} 31. Bd7 {[%emt 0:01:04]} 1-0

[Event "Kragero Resort A 2020"]
[Site "Kragero"]
[Date "2020.02.21"]
[Round "6.17"]
[White "Shehzad, Shazil"]
[Black "Doluhanova, Evgeniya"]
[Result "1-0"]
[ECO "B51"]
[WhiteElo "2144"]
[BlackElo "2258"]
[Annotator "ChessBase"]
[PlyCount "103"]
[EventDate "2020.02.19"]
[EventType "swiss"]
[EventCountry "NOR"]
[SourceTitle "playchess.com"]
[Source "ChessBase"]
[SourceQuality "1"]
[TimeControl "5400+30"]

1. e4 {[%emt 0:04:51]} c5 {[%emt 0:00:00]} 2. Nf3 {[%emt 0:00:06]} d6 {[%emt 0:00:00]} 3. Bb5+ {[%emt 0:00:06]} Nd7 {[%emt 0:00:00]} 4. Ba4 {[%emt 0:00:37]} Ngf6 {[%emt 0:00:12]} 5. O-O {[%emt 0:00:05]} g6 {[%emt 0:03:37]} 6. Re1 {[%emt 0:00:55]} Bg7 {[%emt 0:00:13]} 7. c3 {[%emt 0:00:16]} O-O {[%emt 0:00:29]} 8. d4 {[%emt 0:01:05]} Nb6 {[%emt 0:07:55]} 9. Bb3 {[%emt 0:01:09]} Bg4 {[%emt 0:00:54]} 10. h3 {[%emt 0:01:07]} Bxf3 {[%emt 0:00:43]} 11. Qxf3 {[%emt 0:00:01]} cxd4 {[%emt 0:02:34]} 12. cxd4 {[%emt 0:00:17]} Nfd7 {[%emt 0:01:09]} 13. Be3 {[%emt 0:01:42]} e5 {[%emt 0:00:41]} 14. Rd1 {[%emt 0:02:41]} Rc8 {[%emt 0:03:53]} 15. Qe2 {[%emt 0:03:00]} exd4 {[%emt 0:01:25]} 16. Bxd4 {[%emt 0:00:42]} Bxd4 {[%emt 0:00:13]} 17. Rxd4 {[%emt 0:00:05]} Qf6 {[%emt 0:00:19]} 18. Rd1 {[%emt 0:02:07]} Nc5 {[%emt 0:04:31]} 19. Nc3 {[%emt 0:01:26]} Nxb3 {[%emt 0:01:06]} 20. axb3 {[%emt 0:00:12]} a6 {[%emt 0:00:18]} 21. Qe3 {[%emt 0:01:29]} Rc6 {[%emt 0:01:26]} 22. Rd2 {[%emt 0:03:30]} Re8 {[%emt 0:00:21]} 23. Qd4 {[%emt 0:14:19]} Qxd4 {[%emt 0:10:23]} 24. Rxd4 {[%emt 0:00:05]} Nd7 {[%emt 0:00:57]} 25. Rad1 {[%emt 0:02:09]} Nc5 {[%emt 0:01:32]} 26. b4 {[%emt 0:01:02]} Ne6 {[%emt 0:00:34]} 27. Rxd6 {[%emt 0:00:26]} Kf8 {[%emt 0:09:59]} 28. f3 {[%emt 0:02:17]} Rec8 {[%emt 0:01:40]} 29. Kf2 {[%emt 0:01:17]} b5 {[%emt 0:05:29]} 30. Rxc6 {[%emt 0:11:24]} Rxc6 {[%emt 0:00:05]} 31. Rd2 {[%emt 0:01:30]} Rc4 {[%emt 0:08:56]} 32. Na2 {[%emt 0:04:42]} Nd4 {[%emt 0:07:26]} 33. Ke3 {[%emt 0:02:01]} Nc2+ {[%emt 0:02:21]} 34. Kf4 {[%emt 0:01:01]} Ke7 {[%emt 0:05:24]} 35. b3 {[%emt 0:02:02]} Rc6 {[%emt 0:03:06]} 36. e5 {[%emt 0:02:05]} f6 {[%emt 0:13:47]} 37. exf6+ {[%emt 0:01:38]} Rxf6+ {[%emt 0:00:44]} 38. Kg5 {[%emt 0:00:50]} Rc6 {[%emt 0:00:05]} 39. f4 {[%emt 0:01:25]} Na1 {[%emt 0:01:52]} 40. g4 {[%emt 0:02:15]} Nxb3 {[%emt 0:02:37]} 41. Rd3 {[%emt 0:00:55]} Rc2 {[%emt 0:00:24]} 42. Nc3 {[%emt 0:01:05]} Nc1 {[%emt 0:00:18]} 43. Re3+ {[%emt 0:00:20]} Kf7 {[%emt 0:00:22]} 44. Nd5 {[%emt 0:02:07]} Rd2 {[%emt 0:01:21]} 45. Re7+ {[%emt 0:00:57]} Kf8 {[%emt 0:00:04]} 46. Rd7 {[%emt 0:01:29]} Nb3 {[%emt 0:01:01]} 47. f5 {[%emt 0:01:52]} gxf5 {[%emt 0:00:12]} 48. gxf5 {[%emt 0:00:49]} a5 {[%emt 0:00:44]} 49. Kf6 {[%emt 0:00:31]} Ke8 {[%emt 0:00:04]} 50. Rd6 {[%emt 0:00:07]} a4 {[%emt 0:00:41]} 51. Nc7+ {[%emt 0:00:19]} Kf8 {[%emt 0:00:04]} 52. Ra6 {[%emt 0:00:20]} 1-0

[Event "Kragero Resort A 2020"]
[Site "Kragero"]
[Date "2020.02.21"]
[Round "6.18"]
[White "Van Dael, Siem"]
[Black "Stanford, Sheila Barth"]
[Result "1-0"]
[ECO "B01"]
[WhiteElo "2257"]
[BlackElo "2145"]
[Annotator "ChessBase"]
[PlyCount "67"]
[EventDate "2020.02.19"]
[EventType "swiss"]
[EventCountry "NOR"]
[SourceTitle "playchess.com"]
[Source "ChessBase"]
[SourceQuality "1"]
[TimeControl "5400+30"]

1. e4 {[%emt 0:01:11]} d5 {[%emt 0:00:00]} 2. exd5 {[%emt 0:00:06]} Qxd5 {[%emt 0:00:00]} 3. Nc3 {[%emt 0:00:14]} Qd8 {[%emt 0:00:00]} 4. Bc4 {[%emt 0:00:20]} Nf6 {[%emt 0:00:20]} 5. Nf3 {[%emt 0:00:26]} a6 {[%emt 0:00:15]} 6. O-O {[%emt 0:00:18]} e6 {[%emt 0:02:02]} 7. d4 {[%emt 0:00:53]} b5 {[%emt 0:00:30]} 8. Bd3 {[%emt 0:02:11]} Bb7 {[%emt 0:00:27]} 9. Re1 {[%emt 0:00:38]} Be7 {[%emt 0:01:07]} 10. a4 {[%emt 0:00:49]} b4 {[%emt 0:01:48]} 11. Ne4 {[%emt 0:00:53]} Nbd7 {[%emt 0:06:02]} 12. b3 {[%emt 0:07:21]} O-O {[%emt 0:01:32]} 13. Bb2 {[%emt 0:00:24]} Nxe4 {[%emt 0:04:01]} 14. Bxe4 {[%emt 0:00:07]} Bxe4 {[%emt 0:00:13]} 15. Rxe4 {[%emt 0:00:07]} Nf6 {[%emt 0:00:12]} 16. Re1 {[%emt 0:00:47]} Rc8 {[%emt 0:06:31]} 17. Qe2 {[%emt 0:01:06]} Qd6 {[%emt 0:01:21]} 18. Ne5 {[%emt 0:02:35]} Nd5 {[%emt 0:03:46]} 19. c4 {[%emt 0:02:07]} bxc3 {[%emt 0:20:33]} 20. Ba3 {[%emt 0:01:28]} c5 {[%emt 0:00:11]} 21. dxc5 {[%emt 0:02:23]} Qc7 {[%emt 0:13:31]} 22. Qxa6 {[%emt 0:04:58]} Bf6 {[%emt 0:01:06]} 23. Nd3 {[%emt 0:03:26]} c2 {[%emt 0:13:48]} 24. Rac1 {[%emt 0:04:12]} Rb8 {[%emt 0:00:09]} 25. Qc4 {[%emt 0:00:23]} Qb7 {[%emt 0:00:39]} 26. c6 {[%emt 0:01:29]} Qxb3 {[%emt 0:00:12]} 27. Qxb3 {[%emt 0:00:10]} Rxb3 {[%emt 0:00:03]} 28. Bxf8 {[%emt 0:00:13]} Kxf8 {[%emt 0:01:18]} 29. Rxc2 {[%emt 0:00:15]} Bd8 {[%emt 0:02:03]} 30. Nc5 {[%emt 0:00:12]} Ra3 {[%emt 0:00:47]} 31. Na6 {[%emt 0:00:41]} Ba5 {[%emt 0:00:29]} 32. Rec1 {[%emt 0:00:46]} Nc7 {[%emt 0:00:08]} 33. Nxc7 {[%emt 0:00:08]} Bxc7 {[%emt 0:00:01]} 34. Rc4 {[%emt 0:00:08]} 1-0

[Event "Kragero Resort A 2020"]
[Site "Kragero"]
[Date "2020.02.21"]
[Round "6.20"]
[White "Sriram, Jha"]
[Black "Birkisson, Bardur Orn"]
[Result "1/2-1/2"]
[ECO "D37"]
[WhiteElo "2383"]
[BlackElo "2186"]
[Annotator "ChessBase"]
[PlyCount "84"]
[EventDate "2020.02.19"]
[EventType "swiss"]
[EventCountry "NOR"]
[SourceTitle "playchess.com"]
[Source "ChessBase"]
[SourceQuality "1"]
[TimeControl "5400+30"]

1. Nf3 {[%emt 0:01:46]} d5 {[%emt 0:00:03]} 2. e3 {[%emt 0:00:08]} Nf6 {[%emt 0:01:55]} 3. c4 {[%emt 0:00:04]} e6 {[%emt 0:04:27]} 4. b3 {[%emt 0:01:04]} Be7 {[%emt 0:01:28]} 5. Bb2 {[%emt 0:00:05]} O-O {[%emt 0:00:55]} 6. d4 {[%emt 0:04:27]} b6 {[%emt 0:09:37]} 7. cxd5 {[%emt 0:05:23]} Nxd5 {[%emt 0:04:14]} 8. Bd3 {[%emt 0:00:52]} Bb7 {[%emt 0:01:54]} 9. O-O {[%emt 0:00:21]} Nd7 {[%emt 0:05:04]} 10. Nc3 {[%emt 0:02:21]} Nxc3 {[%emt 0:07:45]} 11. Bxc3 {[%emt 0:00:03]} c5 {[%emt 0:00:33]} 12. Qc2 {[%emt 0:03:20]} h6 {[%emt 0:02:22]} 13. Rfd1 {[%emt 0:09:19]} cxd4 {[%emt 0:09:41]} 14. Bxd4 {[%emt 0:03:37]} Rc8 {[%emt 0:02:31]} 15. Qe2 {[%emt 0:07:57]} Bf6 {[%emt 0:08:08]} 16. Bb5 {[%emt 0:01:20]} Bc6 {[%emt 0:09:51]} 17. Rac1 {[%emt 0:09:25]} Bxf3 {[%emt 0:08:09]} 18. Rxc8 {[%emt 0:13:36]} Bxe2 {[%emt 0:00:09]} 19. Rxd8 {[%emt 0:00:09]} Bxb5 {[%emt 0:04:31]} 20. Rxd7 {[%emt 0:00:48]} Bxd7 {[%emt 0:00:08]} 21. Bxf6 {[%emt 0:00:03]} Rc8 {[%emt 0:00:54]} 22. g4 {[%emt 0:05:29]} Bc6 {[%emt 0:00:58]} 23. Rd8+ {[%emt 0:00:44]} Rxd8 {[%emt 0:00:09]} 24. Bxd8 {[%emt 0:00:02]} f5 {[%emt 0:02:10]} 25. g5 {[%emt 0:00:38]} hxg5 {[%emt 0:00:59]} 26. Bxg5 {[%emt 0:00:02]} e5 {[%emt 0:00:08]} 27. f4 {[%emt 0:00:54]} exf4 {[%emt 0:00:24]} 28. exf4 {[%emt 0:00:34]} Be4 {[%emt 0:00:08]} 29. Kf2 {[%emt 0:00:15]} Bb1 {[%emt 0:00:08]} 30. a3 {[%emt 0:00:08]} Bc2 {[%emt 0:00:10]} 31. b4 {[%emt 0:00:05]} a5 {[%emt 0:00:09]} 32. Ke3 {[%emt 0:01:21]} axb4 {[%emt 0:00:06]} 33. axb4 {[%emt 0:00:02]} b5 {[%emt 0:00:07]} 34. Kd4 {[%emt 0:00:07]} Kf7 {[%emt 0:00:06]} 35. Ke5 {[%emt 0:00:11]} g6 {[%emt 0:00:09]} 36. h4 {[%emt 0:00:16]} Bb1 {[%emt 0:00:05]} 37. Bd8 {[%emt 0:00:09]} Bc2 {[%emt 0:00:11]} 38. Kd6 {[%emt 0:00:07]} Bb1 {[%emt 0:00:13]} 39. Kd5 {[%emt 0:00:14]} Be4+ {[%emt 0:00:13]} 40. Kc5 {[%emt 0:00:05]} Bd3 {[%emt 0:00:05]} 41. Kd5 {[%emt 0:00:04]} Be4+ {[%emt 0:00:06]} 42. Kc5 {[%emt 0:00:02]} Bd3 {[%emt 0:00:07]} 1/2-1/2

[Event "Kragero Resort A 2020"]
[Site "Kragero"]
[Date "2020.02.21"]
[Round "6.21"]
[White "Kvaloy, Aksel Bu"]
[Black "Kjartansson, David"]
[Result "1/2-1/2"]
[ECO "B51"]
[WhiteElo "2174"]
[BlackElo "2356"]
[Annotator "ChessBase"]
[PlyCount "87"]
[EventDate "2020.02.19"]
[EventType "swiss"]
[EventCountry "NOR"]
[SourceTitle "playchess.com"]
[Source "ChessBase"]
[SourceQuality "1"]
[TimeControl "5400+30"]

1. e4 {[%emt 0:00:00]} c5 {[%emt 0:00:00]} 2. Nf3 {[%emt 0:00:00]} d6 {[%emt 0:00:00]} 3. Bb5+ {[%emt 0:00:00]} Nd7 {[%emt 0:01:22]} 4. Ba4 {[%emt 0:00:08]} g6 {[%emt 0:01:17]} 5. O-O {[%emt 0:02:25]} Bg7 {[%emt 0:00:13]} 6. c3 {[%emt 0:04:03]} Ngf6 {[%emt 0:00:21]} 7. Qe2 {[%emt 0:01:02]} O-O {[%emt 0:02:21]} 8. d4 {[%emt 0:01:17]} Nb6 {[%emt 0:07:32]} 9. Bc2 {[%emt 0:01:28]} Bg4 {[%emt 0:04:15]} 10. Nbd2 {[%emt 0:01:29]} cxd4 {[%emt 0:00:15]} 11. cxd4 {[%emt 0:00:07]} Rc8 {[%emt 0:00:26]} 12. Bb3 {[%emt 0:00:34]} Nfd7 {[%emt 0:05:43]} 13. h3 {[%emt 0:01:14]} Bxf3 {[%emt 0:00:50]} 14. Nxf3 {[%emt 0:00:06]} d5 {[%emt 0:04:04]} 15. e5 {[%emt 0:02:08]} Nb8 {[%emt 0:01:43]} 16. a4 {[%emt 0:12:58]} Nc6 {[%emt 0:01:21]} 17. Bd2 {[%emt 0:04:28]} Nc4 {[%emt 0:03:19]} 18. Bc3 {[%emt 0:01:18]} Qb6 {[%emt 0:04:14]} 19. Ba2 {[%emt 0:04:32]} Nb4 {[%emt 0:01:12]} 20. a5 {[%emt 0:10:47]} Nxa5 {[%emt 0:01:58]} 21. Bxb4 {[%emt 0:03:18]} Qxb4 {[%emt 0:00:08]} 22. Bxd5 {[%emt 0:03:47]} Rfd8 {[%emt 0:01:57]} 23. Ba2 {[%emt 0:02:16]} e6 {[%emt 0:14:23]} 24. Rfd1 {[%emt 0:08:04]} Nb3 {[%emt 0:08:58]} 25. Bxb3 {[%emt 0:01:30]} Qxb3 {[%emt 0:00:06]} 26. Rxa7 {[%emt 0:01:26]} Rc2 {[%emt 0:01:53]} 27. Rd2 {[%emt 0:01:25]} Rc1+ {[%emt 0:00:08]} 28. Kh2 {[%emt 0:00:47]} Bh6 {[%emt 0:00:20]} 29. Rd3 {[%emt 0:01:02]} Qd5 {[%emt 0:04:03]} 30. Rc3 {[%emt 0:05:02]} Rb1 {[%emt 0:02:47]} 31. g3 {[%emt 0:08:55]} Bc1 {[%emt 0:06:29]} 32. Rc5 {[%emt 0:05:46]} Qb3 {[%emt 0:03:00]} 33. Rb5 {[%emt 0:00:50]} Rxb2 {[%emt 0:01:29]} 34. Rxb3 {[%emt 0:00:12]} Rxe2 {[%emt 0:00:07]} 35. Kg1 {[%emt 0:00:40]} Rb2 {[%emt 0:03:24]} 36. Rbxb7 {[%emt 0:00:23]} Rxb7 {[%emt 0:00:43]} 37. Rxb7 {[%emt 0:00:06]} Rc8 {[%emt 0:00:17]} 38. Kf1 {[%emt 0:03:05]} Rc3 {[%emt 0:00:28]} 39. Ng1 {[%emt 0:03:46]} Rd3 {[%emt 0:00:32]} 40. Ne2 {[%emt 0:00:35]} Rd1+ {[%emt 0:00:37]} 41. Kg2 {[%emt 0:00:07]} Bh6 {[%emt 0:00:31]} 42. Kf3 {[%emt 0:01:18]} Rd3+ {[%emt 0:00:21]} 43. Kg2 {[%emt 0:00:33]} Rd2 {[%emt 0:00:05]} 44. Kf3 {[%emt 0:04:10]} 1/2-1/2